bitfinex/quotes_ETHUSD_20250222
["timestamp","ask_amount","ask_price","bid_price","bid_amount"]
[1740240206196,3.57381,2798.2,2797.7,0.1]
[1740240206339,3.57317,2798.7,2798.0,0.1]
[1740240206993,3.57322,2798.6,2798.0,0.1]
[1740240207505,3.57283,2798.9,2797.9,0.1]
[1740240207794,6.82657,2799.1,2798.5,0.1]
[1740240207941,3.57273,2799.0,2798.5,0.1]
[1740240208139,3.2539,2799.1,2798.8,0.1]
[1740240208375,3.57242,2799.3,2798.8,0.1]
[1740240208893,0.8316,2800.1,2799.3,0.1]
[1740240209203,4.13036571,2800.0,2799.3,0.1]
[1740240209363,3.57179,2799.8,2799.2,0.8163]
[1740240209548,0.55890571,2800.0,2799.2,0.8163]
[1740240209897,3.57256,2799.2,2799.0,5.39]
[1740240210198,3.57199,2799.6,2799.1,0.1]
[1740240210395,3.57243,2799.3,2799.0,5.39]
[1740240210695,3.57168,2799.8,2799.4,0.1]
[1740240211042,4.86843977,2800.6,2799.8,0.1]
[1740240211243,3.57135,2800.1,2799.8,0.1]
[1740240211442,3.57153,2800.0,2799.8,0.1]
[1740240211677,3.57193,2799.6,2799.4,5.69]
[1740240211881,3.57206,2799.5,2799.4,5.39]
[1740240212060,3.57148,2800.0,2799.5,0.1]
[1740240212398,0.11098262,2800.6,2800.4,0.3]
[1740240212696,0.11098262,2800.6,2800.5,14.29]
[1740240213394,3.57081,2800.5,2800.3,0.1]
[1740240213540,0.11098262,2800.6,2800.5,0.1]
[1740240213745,0.11098262,2800.6,2800.5,0.3]
[1740240213960,0.11098262,2800.6,2800.5,2.5195]
[1740240214679,0.11098262,2800.6,2800.5,1.0605]
[1740240214863,3.57079,2800.5,2800.3,5.49]
[1740240215040,0.11098262,2800.6,2800.1,0.1]
[1740240215245,3.57206,2799.5,2799.3,7.3]
[1740240216083,5.55775715,2799.9,2798.7,0.1]
[1740240216245,3.5718,2799.8,2799.2,0.1]
[1740240216442,3.57235,2799.3,2798.9,0.3]
[1740240216676,0.8003,2800.2,2799.9,0.1]
[1740240216879,0.11098262,2800.6,2799.9,0.1]
[1740240217095,3.57091,2800.4,2799.6,0.1]
[1740240217246,3.57181,2799.7,2799.6,0.1]
[1740240217446,3.57169,2799.8,2799.6,0.1]
[1740240217687,3.57118,2800.2,2799.8,0.1]
[1740240218007,0.11098262,2800.6,2800.3,0.1]
[1740240218350,3.57142,2800.0,2799.9,0.1]
[1740240218698,3.68167262,2800.6,2800.3,0.1]
[1740240218847,3.68167262,2800.6,2799.9,0.2]
[1740240218848,0.55917988,2800.6,2800.2,0.1]
[1740240219056,3.57094,2800.4,2800.2,0.1]
[1740240219248,3.57101,2800.4,2800.2,0.1]
[1740240219684,3.68164262,2800.6,2800.2,0.1]
[1740240219851,0.11098262,2800.6,2800.4,0.1]
[1740240220059,3.68172262,2800.6,2800.4,0.1]
[1740240220280,3.68172262,2800.6,2800.4,0.3]
[1740240220281,0.11098262,2800.6,2800.4,0.3]
[1740240221510,0.11098262,2800.6,2800.4,14.59]
[1740240221663,3.56914,2801.8,2800.5,13.92979]
[1740240221859,0.01700656,2802.4,2802.3,0.1]
[1740240222107,0.01700656,2802.4,2801.7,0.1]
[1740240222397,0.01700656,2802.4,2801.4,5.39]
[1740240222398,0.8003,2802.3,2801.4,5.39]
[1740240222698,3.56951,2801.5,2801.4,5.39]
[1740240222912,3.57002,2801.1,2801.0,0.1]
[1740240223118,3.57028,2800.9,2800.8,0.510194]
[1740240223300,3.57028,2800.9,2800.8,0.610194]
[1740240223461,0.8003,2800.9,2800.3,0.14290269]
[1740240223811,0.8003,2800.9,2800.3,0.24290269]
[1740240223965,3.57091,2800.4,2800.3,0.14290269]
[1740240224162,7.37065,2800.9,2799.6,0.1]
[1740240224163,12.12810715,2800.9,2799.6,0.1]
[1740240224359,3.57108,2800.3,2800.1,0.1]
[1740240224593,0.8003,2800.1,2799.6,0.1]
[1740240224794,0.8003,2800.1,2799.8,0.1]
[1740240225002,3.57115,2800.3,2799.8,0.1]
[1740240225424,0.7553,2800.5,2799.8,0.1]
[1740240225578,0.7553,2800.5,2800.0,0.1]
[1740240225768,3.57144,2800.0,2799.7,0.2]
[1740240225984,3.57144,2800.0,2799.6,0.1]
[1740240226206,3.57091,2800.4,2799.5,0.2]
[1740240226507,0.432621,2800.3,2799.7,0.1]
[1740240226671,3.57179,2799.8,2799.5,0.1]
[1740240227013,3.57106,2800.3,2799.9,0.1]
[1740240227395,3.57091,2800.4,2799.7,0.1]
[1740240227584,3.57181,2799.7,2799.6,0.2907423]
[1740240227783,3.5713,2800.1,2800.0,0.1]
[1740240227989,3.57145,2800.0,2799.8,0.1]
[1740240228211,3.57155,2800.0,2799.8,0.1]
[1740240228515,3.57181,2799.7,2799.6,0.1]
[1740240228697,3.57156,2799.9,2799.6,0.3]
[1740240228899,0.7553,2800.5,2800.0,0.1]
[1740240229210,3.57121,2800.2,2800.0,0.1]
[1740240229379,3.57155,2799.9,2799.8,0.1]
[1740240229579,3.57155,2799.9,2799.6,0.2]
[1740240229580,3.57181,2799.7,2799.6,0.3]
[1740240229996,3.5718,2799.8,2799.6,0.1]
[1740240230199,3.57181,2799.7,2799.6,0.3]
[1740240230505,3.57181,2799.7,2799.6,0.1]
[1740240230806,3.57156,2799.9,2799.6,0.3]
[1740240231184,3.57133,2800.1,2799.6,0.3]
[1740240231384,3.57181,2799.7,2799.6,0.21182779]
[1740240231585,3.57165,2799.9,2799.6,0.21182779]
[1740240231793,0.7553,2800.5,2799.6,0.11182779]
[1740240231992,3.57181,2799.7,2799.6,0.11182779]
[1740240232193,4.35651,2799.7,2799.6,0.11182779]
[1740240232373,3.57181,2799.7,2799.6,0.11182779]
[1740240233083,4.35651,2799.7,2799.6,0.11182779]
[1740240233301,3.57217,2799.5,2799.0,7.297]
[1740240233496,3.57257,2799.1,2799.0,7.297]
[1740240233673,3.5727,2799.0,2798.8,0.1]
[1740240233879,3.57283,2798.9,2798.8,0.1]
[1740240234092,0.7847,2799.7,2799.1,0.1]
[1740240234330,3.57193,2799.6,2799.1,0.1]
[1740240234627,3.5723,2799.4,2799.1,0.1]
[1740240234925,3.57211,2799.5,2799.3,0.1]
[1740240235225,3.57242,2799.3,2799.1,0.3]
[1740240235426,3.57209,2799.5,2799.1,0.3]
[1740240235595,3.57209,2799.5,2799.3,0.1]
[1740240236214,3.57158,2799.9,2799.5,0.1]
[1740240236386,0.7847,2800.6,2799.7,0.1]
[1740240236725,3.57181,2799.7,2799.6,0.2]
[1740240236895,3.57181,2799.7,2799.6,0.1]
[1740240237314,3.57206,2799.5,2799.4,0.3]
[1740240237494,3.57181,2799.7,2799.4,0.3]
[1740240237977,3.57232,2799.3,2799.2,0.17891716]
[1740240238493,3.57232,2799.3,2799.2,0.47891716]
[1740240238703,3.57206,2799.5,2799.2,0.47891716]
[1740240238901,3.57232,2799.3,2799.2,0.3]
[1740240239615,3.768,2799.9,2799.2,0.2]
[1740240239830,3.57232,2799.3,2799.2,0.3]
[1740240239986,3.57198,2799.6,2799.2,0.3]
[1740240240208,3.57232,2799.3,2799.2,0.3]
[1740240240924,3.5727,2799.0,2798.9,9.0]
[1740240241243,3.5727,2799.0,2798.9,14.39]
[1740240241561,0.7847,2799.2,2798.9,14.39]
[1740240242260,0.7847,2799.6,2798.9,14.39]
[1740240242459,0.7847,2799.6,2799.3,0.1]
[1740240243109,0.77541,2799.6,2799.0,14.39]
[1740240243458,4.54341,2799.6,2799.0,14.59]
[1740240243608,4.222341,2799.5,2799.1,0.2]
[1740240243808,0.77541,2799.6,2799.2,0.1]
[1740240244050,0.77541,2799.6,2799.0,14.39]
[1740240244226,0.77541,2799.6,2799.2,0.1]
[1740240244429,0.77541,2799.6,2799.1,0.2]
[1740240244621,0.77541,2799.6,2799.2,0.1]
[1740240244964,4.54341,2799.6,2799.0,14.39]
[1740240245172,0.454341,2799.5,2799.0,14.39]
[1740240245455,0.454341,2799.5,2799.0,14.59]
[1740240245657,0.77541,2799.6,2799.0,14.59]
[1740240246063,4.54341,2799.6,2799.0,14.59]
[1740240246757,4.54341,2799.6,2799.0,14.39]
[1740240246941,4.54341,2799.6,2799.0,14.59]
[1740240247112,0.77541,2799.6,2799.3,0.2]
[1740240247516,4.997751,2799.6,2799.0,14.29]
[1740240248154,6.9195,2799.4,2799.0,14.29]
[1740240248338,6.9195,2799.4,2798.7,5.39]
[1740240248639,3.768,2799.2,2798.6,0.00714642]
[1740240248857,3.768,2799.2,2797.0,0.367]
[1740240248858,9.35845715,2798.8,2797.7,5.39]
[1740240249057,3.768,2798.4,2797.7,5.39]
[1740240249377,3.0,2797.5,2796.7,5.39]
[1740240249670,6.768,2797.1,2796.3,0.14366692]
[1740240249821,3.768,2796.8,2796.3,0.14366692]
[1740240250665,8.52545715,2796.5,2795.6,0.3]
[1740240250828,4.75745715,2796.1,2795.6,0.1]
[1740240251036,1.60361005,2796.6,2796.1,0.1]
[1740240251037,0.7828,2796.6,2796.1,0.1]
[1740240251436,0.7828,2796.6,2795.9,0.1]
[1740240251754,0.7828,2796.6,2795.8,0.2]
[1740240251934,4.318,2796.5,2795.8,0.2]
[1740240252129,3.768,2796.5,2795.9,0.2]
[1740240252343,5.54025715,2796.6,2795.9,0.3]
[1740240252547,0.7828,2796.6,2796.5,0.1]
[1740240252760,0.7828,2796.6,2795.7,0.3]
[1740240252761,1.1498,2796.6,2795.7,0.3]
[1740240253064,3.768,2796.3,2795.7,9.1]
[1740240253441,3.768,2796.3,2795.7,8.9]
[1740240253623,0.7828,2795.9,2795.3,14.29]
[1740240253828,0.7828,2794.7,2793.7,0.9002]
[1740240254156,0.7828,2795.2,2793.8,0.9002]
[1740240254322,4.75745715,2794.9,2793.8,0.9002]
[1740240254724,4.75745715,2794.5,2793.8,0.9002]
[1740240254931,4.75745715,2794.5,2793.2,0.9002]
[1740240255123,0.7828,2794.0,2793.1,5.1070625]
[1740240255349,4.75745715,2793.7,2792.6,1.10860842]
[1740240255548,0.47236605,2793.6,2792.6,0.33590842]
[1740240255738,4.75745715,2793.7,2792.2,0.7727]
[1740240255739,0.7828,2794.0,2792.2,0.7727]
[1740240255938,0.7828,2794.0,2792.3,0.9002]
[1740240256126,4.75745715,2793.9,2792.3,0.9002]
[1740240256324,0.7828,2794.0,2792.3,0.9002]
[1740240256325,4.75745715,2793.5,2792.3,0.9002]
[1740240256525,0.7828,2793.3,2792.3,0.9002]
[1740240256721,4.75745715,2793.1,2791.9,0.9002]
[1740240256926,0.55,2793.0,2791.9,0.9002]
[1740240257327,0.92,2793.0,2791.9,0.9002]
[1740240257665,0.7828,2792.9,2791.9,0.9002]
[1740240257822,4.75745715,2792.7,2791.9,0.9002]
[1740240258027,4.75745715,2792.7,2791.8,0.1486362]
[1740240258225,4.75745715,2792.3,2791.8,0.1486362]
[1740240258760,0.7828,2792.5,2791.8,0.1486362]
[1740240259459,4.75745715,2792.3,2791.8,0.1486362]
[1740240259662,0.47574571,2792.2,2791.8,0.1486362]
[1740240259825,4.75745715,2791.9,2791.8,0.1486362]
[1740240260023,6.09025715,2791.9,2791.8,0.1486362]
[1740240260655,6.09025715,2791.9,2789.6,0.2]
[1740240260656,1.3328,2791.8,2790.1,0.9002]
[1740240260853,4.75745715,2791.0,2789.7,0.9002]
[1740240261028,1.25854571,2790.9,2789.8,0.9002]
[1740240261347,3.0,2791.4,2789.9,0.7727]
[1740240261348,0.7828,2791.4,2789.9,0.7727]
[1740240261553,5.54025715,2791.8,2790.0,6.0072625]
[1740240261730,4.75745715,2791.4,2790.1,0.9002]
[1740240261923,5.54025715,2791.8,2790.1,0.9002]
[1740240262129,0.7828,2791.2,2789.9,0.7227]
[1740240262328,0.7828,2791.2,2789.9,1.6229]
[1740240262626,3.7828,2791.2,2789.9,0.9002]
[1740240262855,4.75745715,2790.7,2789.9,0.9002]
[1740240263058,0.7828,2791.2,2790.0,0.9002]
[1740240263363,0.55402572,2791.7,2790.1,0.60072625]
[1740240263364,1.33682572,2791.7,2790.1,0.60072625]
[1740240263666,4.75745715,2791.5,2790.1,0.60072625]
[1740240264234,0.7828,2791.7,2790.2,0.9002]
[1740240264742,4.75745715,2791.5,2790.2,0.9002]
[1740240264956,4.75745715,2791.5,2790.1,5.1070625]
[1740240265138,4.75745715,2791.1,2790.1,5.1070625]
[1740240265468,0.8173,2791.0,2790.1,5.1070625]
[1740240265869,3.8173,2791.0,2789.8,0.9002]
[1740240266175,4.75745715,2790.7,2789.8,0.9002]
[1740240266742,4.75745715,2790.9,2789.8,0.9002]
[1740240267064,4.75745715,2791.1,2789.9,6.8183625]
[1740240267264,5.57475715,2791.9,2790.1,0.8111]
[1740240267454,5.57475715,2791.9,2790.3,0.8111]
[1740240268367,5.94775715,2792.3,2790.4,6.0072625]
[1740240268663,5.57475715,2792.3,2790.5,0.8111]
[1740240268828,6.13223287,2792.3,2790.6,1.41343625]
[1740240269026,5.57475715,2792.3,2790.8,0.8111]
[1740240269238,5.57475715,2792.3,2790.9,6.0072625]
[1740240269563,4.75745715,2791.9,2790.8,0.8111]
[1740240269762,5.57475715,2792.3,2790.8,0.8111]
[1740240269964,9.90023287,2792.3,2790.8,1.7113]
[1740240270263,1.37477572,2792.3,2790.8,1.7113]
[1740240270465,5.57475715,2792.3,2790.8,1.7113]
[1740240270836,5.57475715,2792.3,2790.9,6.0072625]
[1740240271534,0.8173,2792.3,2790.9,6.0072625]
[1740240271731,0.8173,2792.3,2791.0,0.9002]
[1740240272063,0.8173,2792.3,2791.1,6.0072625]
[1740240272263,5.57475715,2792.3,2791.2,0.9002]
[1740240272464,4.75745715,2791.9,2790.9,0.9002]
[1740240272667,0.8173,2792.3,2791.0,0.9002]
[1740240272873,4.75745715,2792.5,2791.1,0.8]
[1740240273231,0.7585,2792.7,2791.2,6.0072625]
[1740240273469,4.75745715,2792.9,2791.4,0.8]
[1740240273672,4.75745715,2792.9,2791.5,6.0072625]
[1740240274085,0.7585,2793.7,2791.7,0.8]
[1740240274370,0.7585,2793.7,2791.9,0.8]
[1740240274879,4.75745715,2793.9,2792.1,0.8]
[1740240275037,0.47574571,2793.8,2792.3,0.8]
[1740240275238,0.47574571,2793.8,2792.4,6.0072625]
[1740240275753,0.7585,2794.1,2792.5,1.7002]
[1740240276073,0.7585,2794.1,2792.6,0.8]
[1740240276238,4.75745715,2794.3,2792.6,0.8]
[1740240276637,4.75745715,2794.7,2792.8,0.8]
[1740240276974,0.47574571,2794.6,2793.0,0.8]
[1740240277192,4.75745715,2795.1,2793.2,0.8]
[1740240277483,4.75745715,2795.1,2793.4,0.8]
[1740240277772,4.75745715,2795.5,2793.6,0.8]
[1740240277994,5.12745715,2795.9,2793.7,0.8]
[1740240278191,5.12745715,2795.9,2793.9,0.8]
[1740240278339,0.51274572,2795.8,2794.1,0.8]
[1740240278541,0.51274572,2795.8,2794.3,0.8]
[1740240278767,0.51274572,2795.8,2794.5,0.8]
[1740240280978,0.51274572,2795.8,2794.6,6.0072625]
[1740240281989,4.75745715,2796.3,2794.6,6.0072625]
[1740240283474,4.75745715,2796.3,2794.7,6.0072625]
[1740240283969,0.7585,2796.6,2794.9,0.8]
[1740240284301,4.75745715,2796.8,2795.1,0.8]
[1740240285364,0.7981,2797.4,2795.3,0.7725]
[1740240285691,4.75745715,2797.1,2795.5,0.7725]
[1740240287308,4.75745715,2796.7,2795.6,6.0072625]
[1740240287510,0.7981,2796.6,2795.7,0.9002]
[1740240287670,4.75745715,2796.3,2795.7,0.9002]
[1740240288010,4.75745715,2795.9,2795.6,5.1070625]
[1740240288195,0.47574571,2795.8,2795.6,5.1070625]
[1740240288397,0.47574571,2795.8,2795.2,5.1070625]
[1740240288606,4.75745715,2795.5,2794.7,0.7725]
[1740240288778,4.75745715,2795.1,2794.3,5.8795625]
[1740240289527,4.75745715,2795.5,2794.3,5.8795625]
[1740240289732,0.47574571,2795.4,2794.3,5.8795625]
[1740240289891,0.47574571,2795.4,2794.3,6.7797625]
[1740240290642,0.7758,2796.2,2794.4,6.0072625]
[1740240290847,0.7758,2796.2,2794.5,6.8111625]
[1740240291399,0.7758,2796.2,2794.6,0.8039]
[1740240292544,4.75745715,2795.9,2794.6,0.8039]
[1740240293628,3.0,2795.8,2794.6,0.8039]
[1740240293792,5.53325715,2795.4,2794.6,0.8039]
[1740240293993,5.53325715,2795.4,2794.6,5.9109625]
[1740240295820,5.53325715,2795.4,2794.6,5.1070625]
[1740240298037,4.75745715,2794.9,2793.8,0.7626]
[1740240298354,4.75745715,2794.9,2793.9,5.1070625]
[1740240298569,0.47574571,2794.8,2794.1,0.7626]
[1740240298721,5.56865715,2795.3,2794.1,0.7626]
[1740240298920,4.75745715,2795.3,2794.2,6.0072625]
[1740240299354,4.75745715,2794.8,2794.2,5.1070625]
[1740240299552,3.57832,2794.6,2794.2,5.1070625]
[1740240299753,3.57829,2794.7,2794.2,5.1070625]
[1740240300059,4.75745715,2794.8,2794.2,5.1070625]
[1740240300249,3.57871,2794.3,2794.2,5.1070625]
[1740240300560,3.57856,2794.5,2794.2,5.1070625]
[1740240300725,3.57823,2794.7,2794.2,5.1070625]
[1740240301081,3.8112,2795.2,2794.2,5.1070625]
[1740240301082,3.0,2795.2,2794.2,5.1070625]
[1740240301358,3.57794,2795.0,2794.3,0.9002]
[1740240301559,3.57808,2794.8,2794.3,0.9002]
[1740240301867,3.57823,2794.7,2794.3,0.9002]
[1740240302039,3.57808,2794.8,2794.3,0.9002]
[1740240302356,3.57784,2795.0,2794.5,0.7626]
[1740240302543,3.57807,2794.8,2794.5,0.7626]
[1740240303059,3.57795,2794.9,2794.5,0.7626]
[1740240303969,3.57815,2794.8,2794.5,0.7626]
[1740240304193,3.57795,2794.9,2794.5,0.7626]
[1740240304584,3.5782,2794.7,2794.5,0.7626]
[1740240305079,3.57845,2794.5,2794.4,6.0072625]
[1740240305279,3.57937,2793.8,2793.1,0.8013]
[1740240305481,8.33622715,2794.3,2793.2,6.0072625]
[1740240305685,3.57986,2793.4,2793.3,0.9002]
[1740240306186,7.34799,2793.3,2793.2,0.11205808]
[1740240306395,11.73389,2793.3,2793.2,8.08e-06]
[1740240306695,11.18389,2793.3,2793.2,8.08e-06]
[1740240307053,11.73389,2793.3,2793.2,8.08e-06]
[1740240307248,11.73389,2793.3,2792.0,0.8013]
[1740240307448,3.768,2792.6,2791.7,5.1070625]
[1740240307653,3.58167,2792.0,2791.7,5.1070625]
[1740240308204,4.75745715,2792.7,2791.7,5.1070625]
[1740240308498,3.5814,2792.2,2791.3,6.0072625]
[1740240308650,3.58215,2791.7,2791.3,5.1070625]
[1740240308851,3.58241,2791.5,2791.1,0.8013]
[1740240309095,3.58243,2791.4,2791.1,0.8013]
[1740240309299,3.58245,2791.4,2791.1,0.8013]
[1740240309514,4.75745715,2791.9,2791.1,0.8013]
[1740240309515,3.58267,2791.3,2791.1,0.8013]
[1740240309673,0.358267,2791.2,2790.5,0.8033]
[1740240309864,0.55,2791.4,2790.5,0.8033]
[1740240310067,3.58326,2790.8,2790.3,0.9002]
[1740240310398,3.58371,2790.5,2789.9,0.9002]
[1740240310601,4.75745715,2790.7,2789.9,0.9002]
[1740240310804,3.58357,2790.6,2789.9,0.9002]
[1740240311263,4.35079,2790.9,2789.9,0.9002]
[1740240311468,4.75745715,2791.1,2789.9,0.9002]
[1740240311666,4.75745715,2791.1,2790.1,3.58403]
[1740240311871,3.5835,2790.6,2790.0,0.9002]
[1740240312100,3.58313,2790.9,2790.0,0.9002]
[1740240312299,3.941513,2790.8,2790.0,0.9002]
[1740240312667,3.58385,2790.3,2789.9,0.9002]
[1740240312899,3.58345,2790.6,2789.9,0.9002]
[1740240313070,0.358313,2790.8,2789.9,0.9002]
[1740240313567,3.941583,2790.8,2789.9,0.9002]
[1740240313766,0.3941583,2790.7,2789.9,0.9002]
[1740240313968,9.10747715,2791.5,2790.2,3.5839]
[1740240314168,3.58267,2791.3,2790.3,0.9002]
[1740240314367,9.10747715,2791.5,2790.1,5.1070625]
[1740240314368,8.33977715,2791.5,2790.4,0.9002]
[1740240314571,9.10696715,2791.9,2790.5,0.9002]
[1740240314769,0.7677,2792.3,2791.3,3.58253]
[1740240314981,3.58136,2792.3,2791.4,0.8033]
[1740240315176,3.58114,2792.4,2791.4,0.8033]
[1740240315399,3.58114,2792.4,2791.5,5.1070625]
[1740240315599,3.58114,2792.4,2791.4,1.7035]
[1740240315600,4.75745715,2792.5,2791.6,6.0072625]
[1740240315807,8.33857715,2792.5,2791.6,6.0072625]
[1740240316101,3.58077,2792.7,2791.7,0.9002]
[1740240316266,4.75745715,2792.9,2791.9,0.7752]
[1740240316469,3.581,2792.6,2792.0,5.1070625]
[1740240316766,4.75745715,2792.9,2792.0,6.0072625]
[1740240316980,3.58141,2792.2,2792.0,6.0072625]
[1740240317214,3.58063,2792.8,2792.0,5.1070625]
[1740240317510,3.58102,2792.5,2792.0,6.0072625]
[1740240317825,3.58116,2792.4,2792.0,6.0072625]
[1740240319075,3.58121,2792.4,2792.0,6.0072625]
[1740240319301,3.58119,2792.4,2792.0,6.0072625]
[1740240319729,4.75745715,2792.9,2792.0,6.0072625]
[1740240319730,3.58089,2792.6,2792.0,6.0072625]
[1740240320017,3.58102,2792.5,2792.0,6.0072625]
[1740240320220,3.54515,2792.4,2792.0,6.0072625]
[1740240320372,5.82475933,2793.6,2792.1,0.9002]
[1740240320716,3.5801,2793.3,2792.4,3.58112]
[1740240320899,3.0,2793.5,2792.3,0.7752]
[1740240321306,3.58077,2792.7,2792.3,0.7752]
[1740240321474,3.58077,2792.7,2792.4,5.1070625]
[1740240321675,5.55785715,2792.8,2791.8,6.7824625]
[1740240322075,3.58115,2792.4,2791.8,6.7824625]
[1740240322784,3.58077,2792.7,2791.8,6.7824625]
[1740240323003,8.33766715,2793.2,2792.1,3.58149]
[1740240323190,3.58043,2793.0,2792.1,3.58149]
[1740240323391,3.58052,2792.9,2791.9,9.5890225]
[1740240323602,3.58052,2792.9,2792.0,3.58156]
[1740240323823,3.58052,2792.9,2791.9,9.5890225]
[1740240324015,3.58052,2792.9,2792.1,3.58151]
[1740240324218,3.58052,2792.9,2791.9,9.5890225]
[1740240324403,3.58027,2793.1,2792.1,3.58152]
[1740240324803,3.5804,2793.0,2792.1,3.58152]
[1740240325312,3.58059,2792.9,2791.9,9.5890225]
[1740240325513,0.358059,2792.9,2791.9,6.0072625]
[1740240325827,7.75745715,2793.6,2792.0,4.36326]
[1740240326124,3.58049,2793.0,2792.1,9.5887825]
[1740240326319,3.58049,2793.0,2792.2,6.0072625]
[1740240326652,3.58049,2793.0,2792.2,9.5886125]
[1740240326926,3.5804,2793.0,2792.2,9.5886125]
[1740240327324,8.33717715,2793.6,2792.7,3.58072]
[1740240327536,4.75745715,2794.0,2793.0,3.58027]
[1740240327701,3.57962,2793.6,2792.9,0.7816]
[1740240328833,3.57982,2793.5,2792.9,0.7816]
[1740240329139,3.5805,2792.9,2792.8,6.0072625]
[1740240329339,3.5805,2792.9,2792.8,5.1070625]
[1740240330037,3.58037,2793.0,2792.8,5.1070625]
[1740240330236,3.5805,2792.9,2792.8,5.1070625]
[1740240330443,3.5805,2792.9,2792.5,0.7816]
[1740240330649,3.58101,2792.6,2792.1,0.7596]
[1740240330808,4.75745715,2793.1,2792.2,5.1070625]
[1740240330809,3.5805,2792.9,2792.2,5.1070625]
[1740240331014,3.58127,2792.3,2792.2,5.1070625]
[1740240331209,3.58076,2792.7,2792.2,5.1070625]
[1740240331419,3.581,2792.6,2792.2,5.1070625]
[1740240331750,3.58103,2792.5,2792.2,5.1070625]
[1740240332056,3.58127,2792.3,2792.2,5.1070625]
[1740240332227,3.5809,2792.6,2792.2,5.1070625]
[1740240332406,7.16168,2792.7,2792.2,5.21643349]
[1740240332611,3.58125,2792.4,2792.2,5.21643349]
[1740240333057,3.58093,2792.6,2792.2,5.21643349]
[1740240333257,3.58126,2792.4,2792.2,5.21643349]
[1740240333931,3.58127,2792.3,2792.2,5.21643349]
[1740240334251,3.58126,2792.4,2792.2,5.21643349]
[1740240335428,3.51026,2792.4,2792.2,5.21643349]
[1740240335636,3.58127,2792.3,2792.2,5.21643349]
[1740240335957,7.16191,2792.6,2792.2,5.21643349]
[1740240336248,3.58111,2792.5,2792.2,5.21643349]
[1740240336549,3.58127,2792.3,2792.2,5.21643349]
[1740240337051,3.58079,2792.7,2792.2,5.21643349]
[1740240337237,3.58102,2792.5,2792.2,5.21643349]
[1740240337724,3.58089,2792.6,2792.2,5.21643349]
[1740240338124,3.58064,2792.8,2792.2,5.21643349]
[1740240338539,5.83277479,2793.4,2792.2,5.21643349]
[1740240338736,3.58048,2793.0,2792.4,0.8198]
[1740240339147,0.8037,2793.4,2792.5,0.09994412]
[1740240339351,3.57979,2793.5,2792.6,5.1070625]
[1740240339649,3.57899,2794.1,2793.0,3.58028]
[1740240339855,3.57899,2794.1,2793.2,3.58005]
[1740240340052,3.57882,2794.3,2793.5,3.57973]
[1740240340359,3.57931,2793.9,2793.4,0.8198]
[1740240340528,3.57949,2793.7,2793.6,0.09853257]
[1740240340733,3.57961,2793.6,2793.5,0.09861258]
[1740240340927,3.57961,2793.6,2792.6,0.8198]
[1740240341132,3.57961,2793.6,2793.5,0.09121823]
[1740240341333,3.57961,2793.6,2792.8,3.5806]
[1740240341532,3.57975,2793.5,2792.9,5.1070625]
[1740240341727,0.8037,2793.8,2792.9,5.1987063]
[1740240342059,3.58,2793.3,2792.9,5.1987063]
[1740240342430,3.58037,2793.0,2792.9,5.1987063]
[1740240344124,3.768,2793.5,2792.9,5.1987063]
[1740240344125,3.57985,2793.5,2792.9,5.1987063]
[1740240344325,3.58002,2793.3,2792.9,5.1987063]
[1740240344543,3.57985,2793.5,2792.9,5.1987063]
[1740240344749,4.14245629,2793.7,2792.9,8.7792063]
[1740240344945,3.57918,2794.0,2793.0,0.9002]
[1740240345150,3.57936,2793.8,2793.1,6.8381625]
[1740240345344,4.14245629,2794.1,2793.2,6.0072625]
[1740240345826,3.57887,2794.2,2793.3,6.09875772]
[1740240346024,3.57807,2794.9,2793.3,6.09875772]
[1740240346025,3.5787,2794.4,2793.6,3.57951]
[1740240346224,3.5787,2794.4,2793.7,6.09784522]
[1740240346465,3.57854,2794.5,2793.7,6.09784522]
[1740240346660,3.57835,2794.6,2793.7,6.09784522]
[1740240346842,3.57848,2794.5,2793.7,6.09784522]
[1740240347231,3.57778,2795.1,2794.2,3.57879]
[1740240347557,3.57857,2794.5,2794.3,6.0072625]
[1740240347756,3.57858,2794.4,2794.3,5.19693157]
[1740240348058,7.34658,2794.4,2794.3,0.08986907]
[1740240348428,3.57919,2794.0,2793.5,6.8381625]
[1740240348658,0.808,2794.5,2793.6,0.09025753]
[1740240348827,3.57936,2793.8,2793.6,0.09025753]
[1740240349023,3.5792,2794.0,2793.6,0.09025753]
[1740240349220,3.57925,2793.9,2793.6,0.09025753]
[1740240349424,3.57947,2793.8,2793.6,0.09025753]
[1740240349624,3.57836,2794.6,2793.6,0.09025753]
[1740240349879,3.57846,2794.5,2793.7,6.0072625]
[1740240350178,3.57846,2794.5,2793.7,6.09744003]
[1740240350476,3.57846,2794.5,2793.7,9.67692003]
[1740240350640,3.57821,2794.7,2793.9,3.57915]
[1740240350980,3.57772,2795.1,2794.2,3.57884]
[1740240351180,3.935692,2795.0,2794.3,5.1070625]
[1740240351481,0.357772,2795.0,2794.4,0.9002]
[1740240351966,3.57782,2795.0,2794.5,0.08888297]
[1740240352166,3.57757,2795.2,2794.5,0.08888297]
[1740240352373,3.57769,2795.1,2794.5,0.08888297]
[1740240352540,3.57785,2795.0,2794.6,6.0072625]
[1740240352741,3.57785,2795.0,2794.7,0.9002]
[1740240352938,3.57785,2795.0,2794.7,0.98892308]
[1740240353168,3.57797,2794.9,2794.7,0.98892308]
[1740240353366,3.5776,2795.2,2794.7,0.98892308]
[1740240353561,3.57785,2795.0,2794.7,0.98892308]
[1740240353796,3.57807,2794.8,2794.7,0.98892308]
[1740240354312,3.57807,2794.8,2794.7,0.9002]
[1740240354463,0.7618,2794.9,2793.9,6.0072625]